fUST/lending_fUST_20260506
["ID","MTS","AMOUNT","RATE_DAILY","PERIOD"]
[421649659,1778021439000,-1000.0,0.00012328,2]
[421649658,1778021439000,-500.0,0.00012328,2]
[421649661,1778021439000,-500.0,0.00012328,2]
[421649666,1778021439000,-500.0,0.00012328,2]
[421649663,1778021439000,-500.0,0.00012328,2]
[421649665,1778021439000,-500.0,0.00012328,2]
[421649652,1778021439000,-500.0,0.00012328,2]
[421649634,1778021439000,-500.0,0.00012327,2]
[421649637,1778021439000,-3767.3467,0.00012328,2]
[421649632,1778021439000,-500.0,0.00012327,2]
[421649615,1778021439000,-1210.66410031,0.00012112,2]
[421649616,1778021439000,-198.0,0.00012137,3]
[421649610,1778021439000,-1210.66410031,0.00011879,2]
[421649611,1778021439000,-167.31322766,0.00011971,2]
[421649609,1778021439000,-864.0,0.00011862,2]
[421649614,1778021439000,-2452.621253,0.00012004,2]
[421649613,1778021439000,-181.915,0.00012,2]
[421649612,1778021439000,-1210.66410031,0.00011995,2]
[421649618,1778021439000,-500.0,0.00012228,2]
[421649622,1778021439000,-500.0,0.00012327,2]
[421649621,1778021439000,-500.0,0.00012327,2]
[421649620,1778021439000,-155.0,0.00012327,2]
[421649619,1778021439000,-1210.66410031,0.00012228,2]
[421649629,1778021439000,-500.0,0.00012327,2]
[421649624,1778021439000,-500.0,0.00012327,2]
[421649623,1778021439000,-500.0,0.00012327,2]
[421649625,1778021439000,-500.0,0.00012327,2]
[421649626,1778021439000,-500.0,0.00012327,2]
[421649628,1778021439000,-555.75399317,0.00012327,2]
[421649627,1778021439000,-643.78446599,0.00012327,2]
[421649641,1778021439000,-500.0,0.00012328,2]
[421649631,1778021439000,-341.20760283,0.00012327,2]
[421649633,1778021439000,-500.0,0.00012327,2]
[421649635,1778021439000,-500.0,0.00012327,2]
[421649662,1778021439000,-500.0,0.00012328,2]
[421649636,1778021439000,-388.83173669,0.00012327,2]
[421649630,1778021439000,-500.0,0.00012327,2]
[421649638,1778021439000,-500.0,0.00012328,2]
[421649660,1778021439000,-500.0,0.00012328,2]
[421649693,1778021439000,-500.0,0.00012328,2]
[421649669,1778021439000,-500.0,0.00012328,2]
[421649700,1778021439000,-500.0,0.00012328,2]
[421649705,1778021439000,-672.79,0.00012328,2]
[421649706,1778021439000,-500.0,0.00012328,2]
[421649696,1778021439000,-500.0,0.00012328,2]
[421649709,1778021439000,-500.0,0.00012328,2]
[421649719,1778021439000,-500.0,0.00012328,2]
[421649717,1778021439000,-500.0,0.00012328,2]
[421649718,1778021439000,-500.0,0.00012328,2]
[421649720,1778021439000,-500.0,0.00012328,2]
[421649708,1778021439000,-500.0,0.00012328,2]
[421649711,1778021439000,-500.0,0.00012328,2]
[421649710,1778021439000,-1577.44,0.00012328,2]
[421649712,1778021439000,-500.0,0.00012328,2]
[421649716,1778021439000,-500.0,0.00012328,2]
[421649713,1778021439000,-500.67,0.00012328,2]
[421649714,1778021439000,-500.0,0.00012328,2]
[421649715,1778021439000,-500.0,0.00012328,2]
[421649721,1778021439000,-500.0,0.00012328,2]
[421649723,1778021439000,-609.82,0.00012328,2]
[421649725,1778021439000,-500.0,0.00012328,2]
[421649726,1778021439000,-500.0,0.00012328,2]
[421649724,1778021439000,-885.07,0.00012328,2]
[421649722,1778021439000,-503.58711036,0.00012328,2]
[421649727,1778021439000,-500.0,0.00012328,2]
[421649728,1778021439000,-2080.69,0.00012328,2]
[421649729,1778021439000,-500.0,0.00012328,2]
[421649670,1778021439000,-500.0,0.00012328,2]
[421649703,1778021439000,-500.0,0.00012328,2]
[421649701,1778021439000,-500.0,0.00012328,2]
[421649707,1778021439000,-500.0,0.00012328,2]
[421649702,1778021439000,-500.0,0.00012328,2]
[421649704,1778021439000,-1357.92,0.00012328,2]
[421649681,1778021439000,-500.0,0.00012328,2]
[421649680,1778021439000,-1113.92,0.00012328,2]
[421649679,1778021439000,-500.0,0.00012328,2]
[421649677,1778021439000,-500.0,0.00012328,2]
[421649675,1778021439000,-697.63,0.00012328,2]
[421649671,1778021439000,-500.0,0.00012328,2]
[421649676,1778021439000,-500.0,0.00012328,2]
[421649672,1778021439000,-500.0,0.00012328,2]
[421649673,1778021439000,-500.0,0.00012328,2]
[421649674,1778021439000,-500.0,0.00012328,2]
[421649682,1778021439000,-464.28417047,0.00012328,2]
[421649684,1778021439000,-549.43294067,0.00012328,2]
[421649678,1778021439000,-564.4612821,0.00012328,2]
[421649683,1778021439000,-500.0,0.00012328,2]
[421649685,1778021439000,-284.95622581,0.00012328,2]
[421649699,1778021439000,-544.46,0.00012328,2]
[421649697,1778021439000,-500.0,0.00012328,2]
[421649695,1778021439000,-500.0,0.00012328,2]
[421649694,1778021439000,-500.0,0.00012328,2]
[421649691,1778021439000,-500.0,0.00012328,2]
[421649698,1778021439000,-500.0,0.00012328,2]
[421649688,1778021439000,-500.0,0.00012328,2]
[421649686,1778021439000,-500.0,0.00012328,2]
[421649690,1778021439000,-500.0,0.00012328,2]
[421649692,1778021439000,-500.0,0.00012328,2]
[421649687,1778021439000,-500.0,0.00012328,2]
[421649689,1778021439000,-500.0,0.00012328,2]
[421649763,1778021440000,-636.78,0.00012328,2]
[421649753,1778021440000,-500.0,0.00012328,2]
[421649759,1778021440000,-2496.97,0.00012328,2]
[421649761,1778021440000,-500.0,0.00012328,2]
[421649756,1778021440000,-500.0,0.00012328,2]
[421649757,1778021440000,-660.73,0.00012328,2]
[421649758,1778021440000,-1310.66,0.00012328,2]
[421649760,1778021440000,-500.0,0.00012328,2]
[421649762,1778021440000,-500.0,0.00012328,2]
[421649770,1778021440000,-500.0,0.00012328,2]
[421649765,1778021440000,-500.0,0.00012328,2]
[421649764,1778021440000,-500.0,0.00012328,2]
[421649769,1778021440000,-745.85,0.00012328,2]
[421649767,1778021440000,-500.0,0.00012328,2]
[421649768,1778021440000,-620.54312026,0.00012328,2]
[421649755,1778021440000,-615.34,0.00012328,2]
[421649771,1778021440000,-2668.35,0.00012328,2]
[421649775,1778021440000,-500.0,0.00012328,2]
[421649774,1778021440000,-862.9,0.00012328,2]
[421649766,1778021440000,-500.0,0.00012328,2]
[421649754,1778021440000,-500.0,0.00012328,2]
[421649747,1778021440000,-536.85,0.00012328,2]
[421649748,1778021440000,-500.0,0.00012328,2]
[421649731,1778021440000,-500.0,0.00012328,2]
[421649732,1778021440000,-500.0,0.00012328,2]
[421649730,1778021440000,-500.0,0.00012328,2]
[421649735,1778021440000,-500.0,0.00012328,2]
[421649733,1778021440000,-500.0,0.00012328,2]
[421649737,1778021440000,-500.0,0.00012328,2]
[421649736,1778021440000,-500.0,0.00012328,2]
[421649739,1778021440000,-500.0,0.00012328,2]
[421649740,1778021440000,-500.0,0.00012328,2]
[421649750,1778021440000,-792.11,0.00012328,2]
[421649743,1778021440000,-500.0,0.00012328,2]
[421649738,1778021440000,-500.79,0.00012328,2]
[421649741,1778021440000,-500.0,0.00012328,2]
[421649742,1778021440000,-500.0,0.00012328,2]
[421649745,1778021440000,-500.0,0.00012328,2]
[421649773,1778021440000,-500.0,0.00012328,2]
[421649746,1778021440000,-500.0,0.00012328,2]
[421649751,1778021440000,-500.0,0.00012328,2]
[421649752,1778021440000,-500.0,0.00012328,2]
[421649749,1778021440000,-500.0,0.00012328,2]
[421649744,1778021440000,-500.0,0.00012328,2]
[421649776,1778021440000,-500.0,0.00012328,2]
[421649734,1778021440000,-500.0,0.00012328,2]
[421649779,1778021440000,-500.0,0.00012328,2]
[421649803,1778021440000,-570.64,0.00012328,2]
[421649805,1778021440000,-500.0,0.00012328,2]
[421649806,1778021440000,-510.9,0.00012328,2]
[421649808,1778021440000,-467.87004519,0.00012328,2]
[421649807,1778021440000,-2655.7,0.00012328,2]
[421649802,1778021440000,-1102.43,0.00012328,2]
[421649809,1778021440000,-500.0,0.00012328,2]
[421649811,1778021440000,-500.0,0.00012328,2]
[421649810,1778021440000,-500.0,0.00012328,2]
[421649804,1778021440000,-856.25,0.00012328,2]
[421649813,1778021440000,-500.0,0.00012328,2]
[421649815,1778021440000,-500.0,0.00012328,2]
[421649816,1778021440000,-500.0,0.00012328,2]
[421649822,1778021440000,-500.0,0.00012328,2]
[421649818,1778021440000,-500.0,0.00012328,2]
[421649820,1778021440000,-500.0,0.00012328,2]
[421649819,1778021440000,-500.0,0.00012328,2]
[421649817,1778021440000,-1173.39,0.00012328,2]
[421649821,1778021440000,-2833.41,0.00012328,2]
[421649778,1778021440000,-500.0,0.00012328,2]
[421649814,1778021440000,-500.0,0.00012328,2]
[421649801,1778021440000,-500.0,0.00012328,2]
[421649812,1778021440000,-500.0,0.00012328,2]
[421649797,1778021440000,-674.28,0.00012328,2]
[421649796,1778021440000,-500.0,0.00012328,2]
[421649772,1778021440000,-573.87060302,0.00012328,2]
[421649780,1778021440000,-781.62,0.00012328,2]
[421649781,1778021440000,-500.0,0.00012328,2]
[421649783,1778021440000,-1158.5,0.00012328,2]
[421649787,1778021440000,-500.0,0.00012328,2]
[421649785,1778021440000,-500.0,0.00012328,2]
[421649777,1778021440000,-500.0,0.00012328,2]
[421649784,1778021440000,-1332.84,0.00012328,2]
[421649788,1778021440000,-500.0,0.00012328,2]
[421649789,1778021440000,-500.0,0.00012328,2]
[421649790,1778021440000,-480.38913382,0.00012328,2]
[421649782,1778021440000,-500.0,0.00012328,2]
[421649791,1778021440000,-500.0,0.00012328,2]
[421649794,1778021440000,-500.0,0.00012328,2]
[421649792,1778021440000,-500.0,0.00012328,2]
[421649793,1778021440000,-371.59358025,0.00012328,2]
[421649799,1778021440000,-500.0,0.00012328,2]
[421649798,1778021440000,-1018.86,0.00012328,2]
[421649795,1778021440000,-500.0,0.00012328,2]
[421649786,1778021440000,-500.0,0.00012328,2]
[421649800,1778021440000,-500.0,0.00012328,2]
[421649833,1778021441000,-500.0,0.00012328,2]
[421649830,1778021441000,-471.4182316,0.00012328,2]
[421649828,1778021441000,-500.0,0.00012328,2]
[421649829,1778021441000,-500.0,0.00012328,2]
[421649823,1778021441000,-500.0,0.00012328,2]
[421649827,1778021441000,-500.0,0.00012328,2]
[421649825,1778021441000,-500.0,0.00012328,2]
[421649824,1778021441000,-584.55,0.00012328,2]
[421649832,1778021441000,-854.43,0.00012328,2]
[421649826,1778021441000,-500.0,0.00012328,2]
[421649831,1778021441000,-500.0,0.00012328,2]
[421649842,1778021441000,-500.0,0.00012328,2]
[421649835,1778021441000,-500.0,0.00012328,2]
[421649844,1778021441000,-500.0,0.00012328,2]
[421649843,1778021441000,-500.0,0.00012328,2]
[421649834,1778021441000,-500.0,0.00012328,2]
[421649845,1778021441000,-500.0,0.00012328,2]
[421649841,1778021441000,-371.59418694,0.00012328,2]
[421649846,1778021441000,-56.39581306,0.00012328,2]
[421649837,1778021441000,-500.0,0.00012328,2]
[421649836,1778021441000,-500.0,0.00012328,2]
[421649839,1778021441000,-622.5,0.00012328,2]
[421649838,1778021441000,-1127.61,0.00012328,2]
[421649840,1778021441000,-128.40581306,0.00012328,2]
[421649867,1778021443000,-432.75716211,0.00012328,2]
[421649863,1778021443000,-301.52585842,0.00012328,2]
[421649857,1778021443000,-443.60418694,0.00012328,2]
[421649859,1778021443000,-272.57414158,0.00012328,2]
[421649865,1778021443000,-500.0,0.00012328,2]
[421649866,1778021443000,-500.0,0.00012328,2]
[421649874,1778021443000,-198.24867825,0.00012328,2]
[421649872,1778021443000,-301.75132175,0.00012328,2]
[421649869,1778021443000,-500.0,0.00012328,2]
[421649873,1778021443000,-500.0,0.00012328,2]
[421649871,1778021443000,-198.24867825,0.00012328,2]
[421649870,1778021443000,-500.0,0.00012328,2]
[421649868,1778021443000,-500.0,0.00012328,2]
[421649895,1778021444000,-500.0,0.00012328,2]
[421649908,1778021444000,-500.0,0.00012328,2]
[421649896,1778021444000,-500.0,0.00012328,2]
[421649893,1778021444000,-500.0,0.00012328,2]
[421649892,1778021444000,-500.0,0.00012328,2]
[421649900,1778021444000,-584.08478032,0.00012328,2]
[421649906,1778021444000,-4692.18,0.00012328,2]
[421649897,1778021444000,-317.2631661,0.00012328,2]
[421649911,1778021444000,-500.0,0.00012328,2]
[421649904,1778021444000,-500.0,0.00012328,2]
[421649902,1778021444000,-500.0,0.00012328,2]
[421649890,1778021444000,-500.0,0.00012328,2]
[421649891,1778021444000,-500.0,0.00012328,2]
[421649889,1778021444000,-301.75132175,0.00012328,2]
[421649898,1778021444000,-182.7368339,0.00012328,2]
[421649913,1778021444000,-1428.97271779,0.00012328,2]
[421649894,1778021444000,-500.0,0.00012328,2]
[421649910,1778021444000,-500.0,0.00012328,2]
[421649927,1778021444000,-500.0,0.00012328,2]
[421649928,1778021444000,-32.21371527,0.00012328,2]
[421649926,1778021444000,-314.9660582,0.00012328,2]
[421649924,1778021444000,-1553.43322511,0.00012328,2]
[421649923,1778021444000,-500.0,0.00012328,2]
[421649919,1778021444000,-500.0,0.00012328,2]
[421649922,1778021444000,-500.0,0.00012328,2]
[421649925,1778021444000,-92.82677489,0.00012328,2]
[421649917,1778021444000,-500.0,0.00012328,2]
[421649916,1778021444000,-761.91,0.00012328,2]
[421649914,1778021444000,-933.55,0.00012328,2]
[421649915,1778021444000,-500.0,0.00012328,2]
[421649912,1778021444000,-880.75728221,0.00012328,2]
[421649920,1778021444000,-509.09,0.00012328,2]
[421649918,1778021444000,-500.0,0.00012328,2]
[421649921,1778021444000,-500.0,0.00012328,2]
[421649949,1778021447000,-4241.34181054,0.00012328,2]
[421649951,1778021447000,-500.0,0.00012328,2]
[421649950,1778021447000,-3700.16447419,0.00012328,2]
[421649952,1778021447000,-500.0,0.00012328,2]
[421649956,1778021447000,-500.0,0.00012328,2]
[421649955,1778021447000,-500.0,0.00012328,2]
[421649953,1778021447000,-500.0,0.00012328,2]
[421649958,1778021447000,-301.43126335,0.00012328,2]
[421649957,1778021447000,-560.55,0.00012328,2]
[421649959,1778021447000,-54.31753771,0.00012328,2]
[421649960,1778021447000,-457.9387042,0.00012328,2]
[421649954,1778021447000,-455.96847505,0.00012328,2]
[421650051,1778022631000,-500.0,0.00011627,2]
[421650040,1778022631000,-5665.53134236,0.00011627,2]
[421650036,1778022631000,-300.0,0.00011626,2]
[421650032,1778022631000,-187.65585791,0.00011493,2]
[421650049,1778022631000,-500.0,0.00011627,2]
[421650047,1778022631000,-201.49005414,0.00011627,2]
[421650030,1778022631000,-394.34414209,0.00011493,2]
[421650045,1778022631000,-500.0,0.00011627,2]
[421650028,1778022631000,-182.289,0.00011493,2]
[421650034,1778022631000,-346.10531356,0.0001151,2]
[421650043,1778022631000,-500.0,0.00011627,2]
[421650038,1778022631000,-4395.45833066,0.00011627,2]
[421650068,1778022631000,-173.58531331,0.00011627,2]
[421650055,1778022631000,-500.0,0.00011627,2]
[421650053,1778022631000,-500.0,0.00011627,2]
[421650084,1778022631000,-2445.94471152,0.00011628,2]
[421650080,1778022631000,-177.6271975,0.00011627,2]
[421650076,1778022631000,-441.96895825,0.00011627,2]
[421650074,1778022631000,-500.0,0.00011627,2]
[421650078,1778022631000,-58.03104175,0.00011627,2]
[421650070,1778022631000,-216.10513454,0.00011627,2]
[421650071,1778022631000,-500.0,0.00011627,2]
[421650063,1778022631000,-500.0,0.00011627,2]
[421650066,1778022631000,-377.92016111,0.00011627,2]
[421650058,1778022631000,-500.0,0.00011627,2]
[421650082,1778022631000,-1141.58566892,0.00011627,2]
[421650168,1778022640000,-525337.03501131,0.00011628,2]
[421650167,1778022640000,-33675.62343594,0.00011628,2]
[421650166,1778022640000,-404.79503906,0.00011628,2]
[421650165,1778022640000,-81112.99903903,0.00011628,2]
[421650227,1778022644000,-110427.43894019,0.00011628,2]
[421650228,1778022644000,-1559.0,0.0001173,2]
[421650229,1778022644000,-5030.14438544,0.00011753,2]
[421650232,1778022644000,-300.0,0.00011859,2]
[421650233,1778022644000,-300.0,0.00011859,2]
[421650231,1778022644000,-300.0,0.00011859,2]
[421650230,1778022644000,-300.0,0.00011859,2]
[421650279,1778022645000,-500.0,0.00012328,2]
[421650271,1778022645000,-537.6845,0.00012321,2]
[421650266,1778022645000,-1559.0,0.00012278,2]
[421650270,1778022645000,-151.0,0.00012321,2]
[421650269,1778022645000,-445.202766,0.00012321,2]
[421650267,1778022645000,-162.380719,0.00012321,2]
[421650273,1778022645000,-5325.5211736,0.00012328,2]
[421650274,1778022645000,-500.0,0.00012328,2]
[421650276,1778022645000,-500.0,0.00012328,2]
[421650272,1778022645000,-156.89658255,0.00012321,2]
[421650275,1778022645000,-500.0,0.00012328,2]
[421650277,1778022645000,-500.0,0.00012328,2]
[421650290,1778022645000,-1124.5,0.00012328,2]
[421650280,1778022645000,-500.0,0.00012328,2]
[421650288,1778022645000,-976.41,0.00012328,2]
[421650286,1778022645000,-500.0,0.00012328,2]
[421650281,1778022645000,-500.0,0.00012328,2]
[421650284,1778022645000,-500.0,0.00012328,2]
[421650289,1778022645000,-500.0,0.00012328,2]
[421650291,1778022645000,-560.19,0.00012328,2]
[421650278,1778022645000,-500.0,0.00012328,2]
[421650285,1778022645000,-500.0,0.00012328,2]
[421650287,1778022645000,-500.0,0.00012328,2]
[421650261,1778022645000,-151.0,0.00011936,2]
[421650295,1778022645000,-500.0,0.00012328,2]
[421650296,1778022645000,-500.0,0.00012328,2]
[421650282,1778022645000,-826.94,0.00012328,2]
[421650263,1778022645000,-151.0,0.00011936,2]
[421650252,1778022645000,-151.0,0.00011936,2]
[421650260,1778022645000,-151.0,0.00011936,2]
[421650235,1778022645000,-300.0,0.00011859,2]
[421650236,1778022645000,-300.0,0.00011859,2]
[421650237,1778022645000,-300.0,0.00011859,2]
[421650238,1778022645000,-300.0,0.00011859,2]
[421650239,1778022645000,-300.0,0.00011859,2]
[421650234,1778022645000,-300.0,0.00011859,2]
[421650240,1778022645000,-300.0,0.00011859,2]
[421650242,1778022645000,-300.0,0.00011859,2]
[421650244,1778022645000,-300.0,0.00011859,2]
[421650245,1778022645000,-500.0,0.00011936,2]
[421650243,1778022645000,-300.0,0.00011859,2]
[421650248,1778022645000,-151.0,0.00011936,2]
[421650250,1778022645000,-151.0,0.00011936,2]
[421650262,1778022645000,-151.0,0.00011936,2]
[421650251,1778022645000,-151.0,0.00011936,2]
[421650249,1778022645000,-1957.856,0.00011936,2]
[421650246,1778022645000,-537.68450001,0.00011936,2]
[421650247,1778022645000,-151.0,0.00011936,2]
[421650297,1778022645000,-258.61485232,0.00012328,2]
[421650264,1778022645000,-194.0,0.00012027,3]
[421650254,1778022645000,-151.0,0.00011936,2]
[421650265,1778022645000,-600.0,0.00012095,2]
[421650253,1778022645000,-151.0,0.00011936,2]
[421650255,1778022645000,-151.0,0.00011936,2]
[421650258,1778022645000,-151.0,0.00011936,2]
[421650259,1778022645000,-151.0,0.00011936,2]
[421650256,1778022645000,-151.0,0.00011936,2]
[421650257,1778022645000,-151.0,0.00011936,2]
[421650241,1778022645000,-300.0,0.00011859,2]
[421650293,1778022645000,-500.0,0.00012328,2]
[421650283,1778022645000,-500.0,0.00012328,2]
[421650300,1778022645000,-500.0,0.00012328,2]
[421650339,1778022645000,-500.0,0.00012328,2]
[421650343,1778022645000,-500.0,0.00012328,2]
[421650347,1778022645000,-646.18,0.00012328,2]
[421650340,1778022645000,-500.0,0.00012328,2]
[421650341,1778022645000,-500.0,0.00012328,2]
[421650342,1778022645000,-500.0,0.00012328,2]
[421650344,1778022645000,-500.0,0.00012328,2]
[421650346,1778022645000,-500.0,0.00012328,2]
[421650345,1778022645000,-500.0,0.00012328,2]
[421650349,1778022645000,-546.86,0.00012328,2]
[421650359,1778022645000,-500.0,0.00012328,2]
[421650351,1778022645000,-1196.21,0.00012328,2]
[421650348,1778022645000,-500.0,0.00012328,2]
[421650350,1778022645000,-1056.49,0.00012328,2]
[421650357,1778022645000,-500.0,0.00012328,2]
[421650354,1778022645000,-820.57,0.00012328,2]
[421650352,1778022645000,-500.0,0.00012328,2]
[421650358,1778022645000,-500.0,0.00012328,2]
[421650303,1778022645000,-759.11,0.00012328,2]
[421650355,1778022645000,-500.0,0.00012328,2]
[421650356,1778022645000,-2545.05,0.00012328,2]
[421650360,1778022645000,-500.0,0.00012328,2]
[421650361,1778022645000,-510.83929999,0.00012328,2]
[421650365,1778022645000,-500.0,0.00012328,2]
[421650363,1778022645000,-500.0,0.00012328,2]
[421650364,1778022645000,-500.0,0.00012328,2]
[421650362,1778022645000,-500.0,0.00012328,2]
[421650338,1778022645000,-500.0,0.00012328,2]
[421650333,1778022645000,-500.0,0.00012328,2]
[421650353,1778022645000,-1545.13,0.00012328,2]
[421650337,1778022645000,-500.0,0.00012328,2]
[421650335,1778022645000,-500.0,0.00012328,2]
[421650306,1778022645000,-589.7,0.00012328,2]
[421650304,1778022645000,-500.0,0.00012328,2]
[421650301,1778022645000,-514.48,0.00012328,2]
[421650299,1778022645000,-596.56,0.00012328,2]
[421650302,1778022645000,-500.0,0.00012328,2]
[421650309,1778022645000,-612.59956774,0.00012328,2]
[421650311,1778022645000,-1256.05,0.00012328,2]
[421650319,1778022645000,-500.0,0.00012328,2]
[421650320,1778022645000,-2557.16,0.00012328,2]
[421650321,1778022645000,-500.0,0.00012328,2]
[421650322,1778022645000,-500.0,0.00012328,2]
[421650316,1778022645000,-610.25,0.00012328,2]
[421650313,1778022645000,-500.0,0.00012328,2]
[421650308,1778022645000,-2392.93,0.00012328,2]
[421650324,1778022645000,-500.0,0.00012328,2]
[421650332,1778022645000,-1110.23,0.00012328,2]
[421650323,1778022645000,-500.0,0.00012328,2]
[421650334,1778022645000,-609.37,0.00012328,2]
[421650331,1778022645000,-500.0,0.00012328,2]
[421650328,1778022645000,-500.0,0.00012328,2]
[421650329,1778022645000,-500.0,0.00012328,2]
[421650327,1778022645000,-500.0,0.00012328,2]
[421650326,1778022645000,-749.06,0.00012328,2]
[421650325,1778022645000,-500.0,0.00012328,2]
[421650315,1778022645000,-500.0,0.00012328,2]
[421650317,1778022645000,-633.2,0.00012328,2]
[421650318,1778022645000,-730.17,0.00012328,2]
[421650330,1778022645000,-1277.31,0.00012328,2]
[421650397,1778022646000,-500.0,0.00012328,2]
[421650402,1778022646000,-291.84198522,0.00012328,2]
[421650391,1778022646000,-1265.56,0.00012328,2]
[421650398,1778022646000,-500.0,0.00012328,2]
[421650399,1778022646000,-1577.66,0.00012328,2]
[421650404,1778022646000,-4496.68,0.00012328,2]
[421650390,1778022646000,-500.0,0.00012328,2]
[421650396,1778022646000,-500.0,0.00012328,2]
[421650403,1778022646000,-668.56,0.00012328,2]
[421650394,1778022646000,-500.0,0.00012328,2]
[421650392,1778022646000,-2459.0582,0.00012328,2]
[421650401,1778022646000,-500.0,0.00012328,2]
[421650393,1778022646000,-2213.49,0.00012328,2]
[421650395,1778022646000,-525.7,0.00012328,2]
[421650417,1778022646000,-971.89,0.00012328,2]
[421650405,1778022646000,-7818.21,0.00012328,2]
[421650415,1778022646000,-1067.5,0.00012328,2]
[421650388,1778022646000,-500.0,0.00012328,2]
[421650400,1778022646000,-500.0,0.00012328,2]
[421650383,1778022646000,-500.0,0.00012328,2]
[421650371,1778022646000,-500.0,0.00012328,2]
[421650384,1778022646000,-500.0,0.00012328,2]
[421650369,1778022646000,-500.0,0.00012328,2]
[421650367,1778022646000,-500.0,0.00012328,2]
[421650366,1778022646000,-500.0,0.00012328,2]
[421650370,1778022646000,-500.0,0.00012328,2]
[421650368,1778022646000,-2715.35,0.00012328,2]
[421650373,1778022646000,-500.0,0.00012328,2]
[421650372,1778022646000,-500.0,0.00012328,2]
[421650375,1778022646000,-500.0,0.00012328,2]
[421650382,1778022646000,-500.0,0.00012328,2]
[421650386,1778022646000,-500.0,0.00012328,2]
[421650374,1778022646000,-500.0,0.00012328,2]
[421650387,1778022646000,-550.18,0.00012328,2]
[421650379,1778022646000,-1118.67,0.00012328,2]
[421650377,1778022646000,-500.0,0.00012328,2]
[421650376,1778022646000,-500.0,0.00012328,2]
[421650380,1778022646000,-500.0,0.00012328,2]
[421650378,1778022646000,-500.0,0.00012328,2]
[421650381,1778022646000,-1080.63,0.00012328,2]
[421650385,1778022646000,-500.0,0.00012328,2]
[421650416,1778022646000,-500.0,0.00012328,2]
[421650424,1778022646000,-623.07,0.00012328,2]
[421650414,1778022646000,-500.0,0.00012328,2]
[421650433,1778022646000,-301.78253036,0.00012328,2]
[421650435,1778022646000,-500.0,0.00012328,2]
[421650439,1778022646000,-2326.41,0.00012328,2]
[421650436,1778022646000,-2593.61,0.00012328,2]
[421650437,1778022646000,-517.26,0.00012328,2]
[421650438,1778022646000,-2205.51,0.00012328,2]
[421650443,1778022646000,-500.0,0.00012328,2]
[421650441,1778022646000,-500.0,0.00012328,2]
[421650442,1778022646000,-500.0,0.00012328,2]
[421650440,1778022646000,-1407.61,0.00012328,2]
[421650445,1778022646000,-4811.63,0.00012328,2]
[421650449,1778022646000,-500.0,0.00012328,2]
[421650448,1778022646000,-500.0,0.00012328,2]
[421650451,1778022646000,-2092.05,0.00012328,2]
[421650452,1778022646000,-100.33117625,0.00012328,2]
[421650450,1778022646000,-1895.87,0.00012328,2]
[421650446,1778022646000,-500.0,0.00012328,2]
[421650447,1778022646000,-1727.18,0.00012328,2]
[421650408,1778022646000,-2216.46,0.00012328,2]
[421650444,1778022646000,-758.42,0.00012328,2]
[421650434,1778022646000,-773.22,0.00012328,2]